bitfinex/quotes_ETHUSD_20251117
["timestamp","ask_amount","ask_price","bid_price","bid_amount"]
[1763390252465,0.005,3202.9,3200.7,3.12425471]
[1763390252466,0.0042,3202.9,3202.2,0.4705]
[1763390252669,0.005,3203.9,3202.5,1.98465025]
[1763390252897,0.005,3204.9,3203.1,1.31249664]
[1763390253109,0.005,3205.9,3204.0,8.19886529]
[1763390253282,0.005,3205.9,3204.4,0.405504]
[1763390253471,0.005,3205.9,3204.6,0.405504]
[1763390253667,0.005,3205.9,3204.4,0.4705]
[1763390253901,0.005,3205.9,3204.3,6.24161282]
[1763390254211,0.005,3207.9,3205.1,0.4705]
[1763390254410,0.4785,3207.8,3205.8,0.05]
[1763390254618,0.4785,3207.8,3205.4,0.05]
[1763390254777,0.4785,3207.8,3205.9,0.46020099]
[1763390254975,0.005,3207.9,3206.3,8.19886529]
[1763390255174,0.005,3207.9,3206.6,8.19886529]
[1763390255375,0.005,3208.9,3206.7,0.90675678]
[1763390255616,0.005,3208.9,3207.1,0.05]
[1763390255824,0.4835,3208.9,3207.3,0.05]
[1763390255990,0.4835,3208.9,3206.8,0.39728988]
[1763390256190,0.4835,3208.9,3206.8,0.43753988]
[1763390256415,0.4835,3208.9,3206.9,0.405504]
[1763390256703,0.4835,3208.9,3205.5,0.05]
[1763390256915,0.4835,3208.9,3204.4,0.42115572]
[1763390257121,0.03098451,3208.8,3204.4,0.42115572]
[1763390257320,0.03098451,3208.8,3205.3,0.1]
[1763390257535,0.005,3208.9,3206.2,0.90699264]
[1763390257747,0.005,3208.9,3206.3,0.50864974]
[1763390257748,0.4785,3208.7,3206.3,0.50864974]
[1763390258047,0.4785,3208.7,3206.1,0.005]
[1763390258600,0.03098451,3208.6,3206.1,0.005]
[1763390258945,0.4785,3208.7,3206.1,0.005]
[1763390259114,0.50948451,3208.6,3206.1,0.005]
[1763390259310,0.005,3206.9,3206.1,0.398961]
[1763390259633,0.005,3206.9,3206.3,0.405504]
[1763390259832,0.005,3208.9,3207.1,0.05]
[1763390260043,0.4785,3208.8,3207.2,0.37580043]
[1763390260345,0.005,3208.9,3206.1,9.76763721]
[1763390260578,0.005,3208.9,3207.6,0.405504]
[1763390260696,0.005,3208.9,3208.5,0.405504]
[1763390260896,0.005,3209.9,3207.8,8.19886529]
[1763390260897,0.005,3209.9,3209.1,0.005]
[1763390261097,0.005,3209.9,3207.9,0.4705]
[1763390261296,0.4785,3209.8,3207.1,0.4705]
[1763390261507,0.4785,3209.8,3207.7,0.405504]
[1763390261746,0.4785,3209.8,3207.8,0.40332438]
[1763390261946,0.4785,3209.8,3204.9,0.4705]
[1763390262112,0.194,3206.2,3203.5,0.05]
[1763390262440,0.4785,3209.8,3204.8,8.19886529]
[1763390262645,0.4785,3209.8,3204.1,10.22789145]
[1763390262646,0.005,3209.9,3206.5,0.05]
[1763390262801,0.005,3209.9,3208.4,0.05]
[1763390263154,0.4785,3209.8,3207.5,0.32674105]
[1763390263299,0.4785,3209.8,3207.1,0.90699264]
[1763390263300,1.04835,3209.8,3208.5,0.43054288]
[1763390263501,0.005,3209.9,3209.0,0.05]
[1763390263726,0.005,3209.9,3209.2,0.405504]
[1763390263922,0.005,3209.9,3209.3,0.39588484]
[1763390264206,0.005,3210.9,3209.3,0.39588484]
[1763390264207,3.80756551,3210.0,3209.7,0.405504]
[1763390264400,3.80756551,3210.0,3209.1,0.44588484]
[1763390264401,4.18832206,3210.0,3208.5,8.19886529]
[1763390264640,4.18832206,3210.0,3208.6,0.90699264]
[1763390264797,4.18832206,3210.0,3209.1,8.19886529]
[1763390264798,3.80756551,3210.0,3209.1,8.19886529]
[1763390265004,0.005,3210.9,3210.5,0.05]
[1763390265258,0.194,3213.6,3209.8,1.50463469]
[1763390265259,0.4785,3213.5,3211.4,0.405504]
[1763390265541,0.1512,3214.0,3211.4,0.405504]
[1763390265542,0.1512,3214.0,3212.6,0.05]
[1763390265750,0.1512,3214.0,3212.8,8.19886529]
[1763390265928,0.1512,3214.0,3213.2,3.56766633]
[1763390266140,0.1512,3214.0,3213.2,0.405504]
[1763390266342,0.56933496,3213.3,3211.8,0.05]
[1763390266542,0.56933496,3213.3,3211.3,0.15794127]
[1763390266997,0.09083496,3213.3,3211.7,0.05]
[1763390267203,0.4785,3213.2,3211.3,0.15794127]
[1763390267504,0.4785,3213.2,3208.3,0.158]
[1763390267707,0.4785,3213.2,3208.1,0.055]
[1763390267708,0.4785,3213.2,3208.1,0.005]
[1763390267953,0.1,3212.5,3209.1,0.005]
[1763390268158,0.194,3208.2,3206.9,0.4347682]
[1763390268469,0.6675,3207.2,3204.9,0.81988653]
[1763390268606,0.6675,3207.2,3203.6,0.366]
[1763390268607,0.6675,3207.2,3204.5,0.05]
[1763390268804,0.4785,3207.1,3204.4,0.002]
[1763390269649,0.4785,3207.1,3203.2,8.19886529]
[1763390269650,0.194,3204.5,3201.6,0.05]
[1763390269804,0.194,3204.5,3200.7,8.19886529]
[1763390270006,0.4785,3204.4,3201.1,0.4397682]
[1763390270241,0.4785,3204.4,3201.1,0.005]
[1763390270421,0.4785,3204.4,3201.1,0.055]
[1763390270634,0.194,3205.4,3202.2,1.52034397]
[1763390270808,0.4785,3207.1,3203.4,0.05]
[1763390271002,0.4785,3207.1,3202.8,0.05]
[1763390271342,0.1,3206.8,3202.1,0.005]
[1763390271545,8.19886529,3206.6,3202.1,0.005]
[1763390271744,0.81988653,3206.5,3202.1,0.005]
[1763390272090,0.005,3205.9,3202.1,0.005]
[1763390272380,0.194,3202.2,3201.1,0.005]
[1763390272670,0.194,3202.2,3198.9,0.105]
[1763390272821,0.4785,3202.1,3198.6,8.19886529]
[1763390273129,0.4785,3202.1,3198.1,0.4397682]
[1763390273335,0.4785,3202.1,3198.1,0.005]
[1763390273560,0.4785,3202.1,3199.1,3.13087915]
[1763390273758,0.4785,3202.1,3199.2,0.31308792]
[1763390273920,0.4785,3202.1,3199.3,0.405504]
[1763390274123,0.4785,3202.1,3199.2,0.31308792]
[1763390274524,0.4785,3202.1,3199.1,0.005]
[1763390275174,0.4785,3202.1,3198.1,0.005]
[1763390275321,0.194,3202.2,3198.1,0.005]
[1763390275322,0.0042,3201.9,3198.1,0.005]
[1763390275525,0.4785,3201.8,3198.1,0.005]
[1763390276724,0.4785,3201.8,3197.1,0.005]
[1763390276725,0.194,3198.2,3197.1,0.005]
[1763390277123,0.4785,3199.2,3197.1,0.005]
[1763390277568,0.4785,3199.2,3197.3,0.90699264]
[1763390277771,0.4889,3200.0,3197.4,0.71624662]
[1763390278066,0.4889,3201.8,3198.7,0.405504]
[1763390278270,0.105,3203.9,3198.4,1.54280771]
[1763390278271,0.005,3203.9,3198.4,1.54280771]
[1763390278430,0.005,3200.9,3198.5,1.57540314]
[1763390278625,0.005,3200.9,3198.7,1.58279999]
[1763390279171,0.005,3199.9,3198.7,1.58279999]
[1763390279466,0.005,3199.9,3198.6,0.16254031]
[1763390279649,0.005,3199.9,3197.8,1.59075569]
[1763390279856,0.005,3199.9,3197.2,1.58122165]
[1763390280040,0.005,3199.9,3196.5,1.54998076]
[1763390280368,0.4889,3199.8,3196.1,0.005]
[1763390280574,0.4889,3199.8,3197.2,1.58122165]
[1763390280792,0.4889,3199.8,3197.3,0.47140495]
[1763390280961,0.4889,3199.8,3197.4,0.405504]
[1763390281266,0.4889,3199.7,3197.3,0.47140495]
[1763390281465,0.4889,3199.7,3197.1,0.005]
[1763390281678,0.1829,3197.2,3196.1,0.005]
[1763390282156,0.67151113,3199.6,3196.1,0.005]
[1763390282828,0.67151113,3199.6,3196.3,1.56447959]
[1763390283072,0.67151113,3199.6,3197.0,0.405504]
[1763390283267,0.67151113,3199.6,3197.9,0.90699264]
[1763390283653,0.005,3199.9,3198.1,1.55014248]
[1763390283839,0.005,3199.9,3198.2,1.56547269]
[1763390284044,0.005,3198.9,3198.2,1.56547269]
[1763390284243,0.005,3198.9,3198.3,3.51354727]
[1763390284474,0.005,3198.9,3197.5,0.002]
[1763390284676,0.4889,3198.8,3197.5,0.002]
[1763390284830,0.4889,3198.8,3195.4,1.5333]
[1763390285173,0.4889,3198.8,3195.4,2.0282]
[1763390285383,0.4889,3198.8,3195.1,0.005]
[1763390285829,3.8459,3198.8,3195.1,0.005]
[1763390286030,0.1,3198.6,3195.1,0.005]
[1763390286348,0.1047,3196.2,3195.1,0.005]
[1763390286528,0.4889,3198.7,3195.1,0.005]
[1763390286529,0.4889,3198.5,3195.1,0.005]
[1763390286732,0.4889,3198.6,3195.1,0.005]
[1763390287230,0.4889,3198.6,3195.2,1.55018946]
[1763390287430,0.4889,3198.6,3195.1,0.005]
[1763390287672,0.1,3198.1,3195.1,0.005]
[1763390287832,0.4889,3198.6,3194.1,0.005]
[1763390287833,0.4889,3198.6,3194.2,1.57841031]
[1763390288165,0.4889,3198.5,3194.3,0.15834103]
[1763390288330,3.357,3198.4,3194.3,0.15834103]
[1763390288531,0.005,3197.9,3194.7,0.05]
[1763390288774,0.005,3197.9,3194.9,1.54613724]
[1763390289071,0.005,3197.9,3194.8,0.00729524]
[1763390289072,0.005,3197.9,3195.4,0.405504]
[1763390289230,0.4939,3197.9,3195.6,1.57131029]
[1763390289430,0.005,3197.9,3195.8,1.52983107]
[1763390289659,0.005,3197.9,3195.9,0.00729273]
[1763390289830,0.005,3197.9,3195.9,1.51481519]
[1763390290032,0.005,3197.9,3196.1,1.5424194]
[1763390290240,0.005,3198.9,3196.1,1.5424194]
[1763390290241,0.005,3198.9,3196.3,1.56447959]
[1763390290432,0.005,3198.9,3196.2,1.54807353]
[1763390290633,0.4939,3198.9,3195.1,1.51835128]
[1763390290858,0.4939,3198.9,3194.6,12.5711294]
[1763390291139,0.4939,3198.9,3194.1,3.13573195]
[1763390291140,0.4939,3198.9,3193.9,1.54792876]
[1763390292173,0.4939,3198.9,3194.9,3.12998841]
[1763390292487,0.4939,3198.9,3195.0,1.13288537]
[1763390292773,0.4939,3198.9,3194.6,6.86809358]
[1763390292977,0.4939,3198.9,3196.1,0.005]
[1763390293136,0.90699264,3198.6,3196.1,0.005]
[1763390293340,0.90699264,3198.6,3195.1,0.005]
[1763390293537,0.90699264,3197.8,3195.1,0.005]
[1763390293884,1.26640862,3197.7,3195.1,0.005]
[1763390294180,0.90699264,3197.0,3192.7,0.4949]
[1763390294334,6.86809358,3195.7,3192.0,6.86809358]
[1763390294533,2.082702,3195.6,3191.7,0.4949]
[1763390294774,2.082702,3195.6,3191.3,6.86809358]
[1763390294974,6.86809358,3195.4,3191.1,0.4999]
[1763390295172,0.405504,3195.0,3191.1,0.4999]
[1763390295680,0.405504,3194.8,3191.1,0.4999]
[1763390296053,0.405504,3194.6,3194.1,0.005]
[1763390296450,0.405504,3194.4,3191.1,0.005]
[1763390296937,0.1829,3194.9,3191.1,0.005]
[1763390296938,0.405504,3194.2,3191.2,0.4661]
[1763390297272,0.405504,3194.2,3191.7,0.90699264]
[1763390297451,0.405504,3194.0,3191.2,0.4661]
[1763390297648,0.405504,3194.8,3191.2,0.4661]
[1763390297649,0.4849,3194.8,3192.1,3.60375312]
[1763390297885,0.4849,3194.8,3192.2,0.82647531]
[1763390298188,0.4849,3194.8,3192.2,3.49300621]
[1763390298387,0.4849,3194.8,3192.3,1.37309264]
[1763390298548,0.4849,3194.7,3192.3,0.4661]
[1763390298761,0.03098451,3194.6,3192.3,0.90699264]
[1763390298966,0.4849,3194.7,3192.4,0.48661037]
[1763390299276,0.005,3194.9,3192.3,1.37309264]
[1763390299478,0.005,3194.9,3192.8,0.90699264]
[1763390299774,0.005,3194.9,3192.9,0.77750862]
[1763390299932,0.005,3194.9,3192.2,0.36037531]
[1763390300133,0.005,3194.9,3192.1,3.60380704]
[1763390300339,0.03098451,3194.8,3192.1,0.005]
[1763390300540,6.86809358,3194.7,3192.1,0.005]
[1763390300776,0.93797715,3194.6,3192.1,0.005]
[1763390301080,0.4849,3194.6,3192.3,0.90699264]
[1763390301285,0.005,3194.9,3193.0,0.90699264]
[1763390301439,0.005,3194.9,3192.5,0.90699264]
[1763390301440,0.4849,3194.8,3192.5,0.90699264]
[1763390301640,0.03098451,3194.7,3192.1,0.005]
[1763390301871,0.4849,3194.6,3192.1,0.005]
[1763390302278,0.90699264,3194.2,3192.1,0.005]
[1763390302578,0.1949,3192.2,3190.0,0.001]
[1763390302940,0.4849,3192.9,3190.4,0.4661]
[1763390303142,0.03098451,3192.8,3190.4,0.4661]
[1763390303343,0.4849,3192.7,3192.0,0.001]
[1763390303801,0.6798,3193.8,3192.0,0.001]
[1763390303941,0.1949,3197.0,3192.3,6.86809358]
[1763390303942,0.4849,3194.8,3192.3,6.86809358]
[1763390304142,0.4849,3194.8,3192.4,0.68680936]
[1763390304376,0.4849,3194.8,3192.6,0.90699264]
[1763390304577,0.1949,3195.6,3192.6,0.90699264]
[1763390304881,0.1949,3195.6,3192.2,0.90699264]
[1763390304882,0.005,3193.9,3192.2,0.90699264]
[1763390305183,0.005,3193.9,3192.2,1.37309264]
[1763390305387,0.005,3193.9,3192.2,0.4661]
[1763390305553,0.005,3193.9,3192.4,0.90699264]
[1763390305755,0.005,3193.9,3192.0,0.001]
[1763390305953,0.405504,3193.8,3192.0,0.001]
[1763390306299,0.4899,3193.9,3192.0,0.001]
[1763390306300,0.005,3193.9,3192.1,0.4661]
[1763390306587,0.005,3193.9,3192.6,0.90699264]
[1763390306751,0.005,3193.9,3192.7,0.77750862]
[1763390307136,0.005,3193.9,3192.6,1.37309264]
[1763390307703,0.005,3193.9,3192.7,0.4521]
[1763390307982,0.005,3193.9,3192.0,0.001]
[1763390307983,0.005,3193.9,3192.0,0.4531]
[1763390308284,0.005,3193.9,3192.5,0.90699264]
[1763390308442,0.005,3193.9,3193.4,6.86809358]
[1763390308642,0.005,3193.9,3193.8,0.1958]
[1763390308848,0.005,3194.9,3193.5,1.35909264]
[1763390309041,0.005,3194.9,3193.0,0.1958]
[1763390309256,0.005,3194.9,3193.1,0.4521]
[1763390309455,0.4804,3194.8,3192.3,0.4521]
[1763390309665,0.005,3194.9,3192.8,0.90699264]
[1763390309867,0.405504,3194.8,3192.9,0.77750862]
[1763390310070,0.03098451,3194.7,3192.0,0.001]
[1763390310270,1.5394787,3194.2,3192.0,0.001]
[1763390310592,7.30458209,3194.1,3192.0,0.001]
[1763390310763,0.885904,3194.1,3192.0,0.001]
[1763390310964,0.405504,3193.9,3192.0,0.001]
[1763390311191,0.6642,3194.6,3192.1,0.4571]
[1763390311396,0.6642,3194.6,3192.1,0.005]
[1763390311553,0.405504,3194.4,3192.1,0.005]
[1763390311753,0.4804,3194.5,3192.1,0.005]
[1763390311949,0.03098451,3194.4,3192.1,0.005]
[1763390312197,0.405504,3194.3,3192.1,0.005]
[1763390312350,0.405504,3194.2,3192.1,0.005]
[1763390312550,0.4804,3194.3,3192.1,0.005]
[1763390312754,0.03098451,3194.2,3192.1,0.005]
[1763390312992,0.4804,3194.3,3192.1,0.005]
[1763390313155,0.51138451,3195.1,3192.2,0.4521]
[1763390313363,0.51138451,3194.8,3192.2,0.4521]
[1763390313563,0.405504,3194.7,3192.1,0.005]
[1763390313794,0.405504,3194.3,3192.1,0.005]
[1763390313999,0.4804,3195.4,3192.2,0.4521]
[1763390314153,0.4804,3196.4,3193.2,0.90699264]
[1763390314356,0.4804,3196.4,3193.3,0.405504]
[1763390314578,0.4804,3196.3,3193.3,1.35909264]
[1763390314890,0.005,3196.9,3193.3,1.35909264]
[1763390314891,0.4804,3196.7,3193.3,1.35909264]
[1763390315091,0.4804,3196.7,3193.4,0.48341458]
[1763390315298,0.4804,3195.7,3193.4,0.4521]
[1763390315468,0.03098451,3195.6,3193.4,0.4521]
[1763390315676,0.4804,3194.8,3192.5,0.4521]
[1763390316066,0.405504,3194.7,3192.5,0.4521]
[1763390316413,0.405504,3194.7,3192.1,0.005]
[1763390316593,0.405504,3194.5,3192.1,0.005]
[1763390316901,0.405504,3194.3,3192.1,0.005]
[1763390317057,0.405504,3194.1,3192.1,0.005]
[1763390317289,0.03098451,3194.4,3192.2,0.4521]
[1763390317489,0.405504,3194.3,3192.1,0.005]
[1763390317734,0.405504,3194.1,3192.1,0.005]
[1763390317939,0.4804,3194.3,3192.1,0.4571]
[1763390317940,0.405504,3194.2,3192.1,0.4571]
[1763390318145,0.03098451,3194.1,3192.1,0.005]
[1763390318589,0.1838,3194.8,3192.2,0.4521]
[1763390318790,0.4804,3196.0,3193.0,6.86809358]
[1763390318991,0.4804,3196.0,3192.4,0.90699264]
[1763390318992,0.4804,3195.5,3193.1,0.68680936]
[1763390319238,0.4804,3195.8,3192.9,3.304]
[1763390319542,0.005,3196.9,3192.9,3.304]
[1763390319543,0.005,3196.9,3194.8,0.1937]
[1763390319834,0.005,3196.9,3195.4,0.405504]
[1763390320017,0.005,3196.9,3196.0,0.90699264]
[1763390320333,0.005,3196.9,3196.1,0.48338813]
[1763390320549,0.16875516,3197.9,3196.6,6.86809358]
[1763390320841,0.16875516,3197.9,3196.1,1.35909264]
[1763390321052,0.16875516,3197.9,3196.0,0.77750862]
[1763390321267,0.16875516,3197.9,3194.3,0.4521]
[1763390321268,6.86809358,3197.6,3194.3,0.4521]
[1763390321416,0.404704,3196.8,3193.4,0.4521]
[1763390321616,1.62478651,3197.5,3193.4,7.32019358]
[1763390321617,0.4804,3196.7,3193.4,7.32019358]
[1763390321856,0.4804,3196.7,3194.1,6.86809358]
[1763390322058,0.03098451,3196.6,3194.1,0.005]
[1763390322215,0.4804,3196.7,3194.1,0.005]
[1763390322416,6.86809358,3196.3,3194.1,0.005]
[1763390322614,1.62478651,3196.2,3194.1,0.005]
[1763390322819,1.16720936,3196.2,3195.1,0.005]
[1763390323030,0.51138451,3196.1,3195.1,0.005]
[1763390323316,0.03098451,3196.0,3194.1,0.005]
[1763390323517,0.405504,3195.8,3194.1,0.005]
[1763390323732,0.405504,3195.6,3194.1,0.005]
[1763390323917,0.1838,3194.2,3193.1,0.005]
[1763390324132,0.885904,3194.1,3193.1,0.005]
[1763390324334,0.4804,3194.1,3193.1,0.005]
[1763390324687,0.91688851,3194.0,3193.1,0.005]
[1763390325074,0.405504,3193.8,3193.1,0.005]
[1763390325368,0.4804,3195.0,3193.1,0.005]
[1763390325534,0.03098451,3194.9,3193.1,0.005]
[1763390325737,0.4804,3195.0,3193.1,0.005]
[1763390325946,0.405504,3194.8,3193.1,0.005]
[1763390326476,0.405504,3193.1,3192.1,0.005]
[1763390326626,0.405504,3192.9,3192.1,0.005]
[1763390326832,0.405504,3192.7,3192.1,0.005]
[1763390327058,0.405504,3192.5,3192.1,0.005]
[1763390327281,0.405504,3192.3,3192.1,0.005]
[1763390327485,0.405504,3192.8,3192.1,0.005]
[1763390327776,0.03098451,3193.7,3192.1,0.005]
[1763390327974,0.885904,3193.1,3192.1,0.005]
[1763390328132,0.405504,3192.9,3192.1,0.005]
[1763390328332,0.03098451,3193.0,3192.1,0.005]
[1763390328333,0.405504,3192.7,3192.1,0.005]
[1763390328539,0.4804,3193.5,3192.1,0.005]
[1763390329136,0.43648851,3193.4,3192.1,0.005]
[1763390329338,0.405504,3193.4,3192.1,0.005]
[1763390329559,0.51138451,3193.3,3192.1,0.005]
[1763390329760,0.4804,3194.1,3192.1,0.005]
[1763390329974,0.03098451,3194.0,3192.1,0.005]
[1763390330475,0.1838,3194.6,3192.2,0.03132635]
[1763390330476,0.4804,3193.9,3192.2,0.03132635]
[1763390330638,0.1838,3194.6,3192.3,0.4521]
[1763390330839,0.51138451,3194.5,3192.3,0.4521]
[1763390331071,6.87309358,3194.9,3192.3,0.4521]
[1763390331072,0.005,3194.9,3192.4,0.1958]
[1763390331272,0.005,3194.9,3192.5,0.4521]
[1763390331674,0.005,3194.9,3193.0,0.90699264]
[1763390331872,0.005,3194.9,3192.1,0.4571]
[1763390331873,0.51138451,3194.8,3192.1,0.4571]
[1763390332078,0.4804,3194.8,3192.2,0.4521]
[1763390332274,0.005,3194.9,3192.2,0.4521]
[1763390332474,0.005,3194.9,3192.5,0.405504]
[1763390332839,0.005,3194.9,3192.6,0.4521]
[1763390333081,0.005,3194.9,3193.6,6.86809358]
[1763390333279,0.005,3195.9,3193.6,6.86809358]
[1763390333280,0.005,3195.9,3194.8,0.187]
[1763390333683,0.007,3197.9,3195.6,6.86809358]
[1763390333900,0.007,3197.9,3195.7,1.76459664]
[1763390334185,0.007,3197.9,3196.5,6.25684342]
[1763390334353,0.007,3197.9,3196.9,0.90699264]
[1763390334898,0.4804,3202.6,3199.8,0.1958]
[1763390335058,0.1838,3203.2,3199.8,0.1958]
[1763390335380,0.4846,3201.9,3199.3,0.1958]
[1763390335564,0.4846,3201.9,3199.2,0.4521]
[1763390335565,0.4804,3201.2,3198.1,0.90699264]
[1763390335769,0.0042,3201.9,3196.7,9.08747852]
[1763390335770,6.86809358,3200.8,3197.0,0.1825]
[1763390335986,0.405504,3200.6,3197.1,0.4521]
[1763390336185,0.405504,3200.1,3196.4,0.6346]
[1763390336587,0.73534936,3200.7,3197.4,6.86809358]
[1763390336917,0.73534936,3200.7,3196.4,12.69657814]
[1763390336918,0.4804,3200.6,3198.2,0.90699264]
[1763390337068,0.4804,3200.6,3197.4,0.90699264]
[1763390337264,0.4804,3200.6,3196.8,0.90699264]
[1763390337465,0.405504,3200.5,3197.1,0.005]
[1763390337709,0.4804,3200.6,3198.1,0.005]
[1763390337861,0.4585,3200.5,3198.1,0.005]
[1763390338198,1.19115936,3200.5,3198.1,0.005]
[1763390338403,0.4585,3200.5,3198.1,0.005]
[1763390338585,0.4585,3200.4,3198.1,0.005]
[1763390338973,6.86809358,3200.1,3198.1,0.005]
[1763390339302,0.4585,3200.4,3198.1,0.005]
[1763390339499,0.4585,3200.3,3198.1,0.005]
[1763390339731,0.405504,3200.2,3198.1,0.005]
[1763390340205,0.405504,3198.1,3197.1,0.005]
[1763390340411,0.1816,3198.2,3197.1,0.005]
[1763390340611,0.4585,3198.1,3197.1,0.005]
[1763390340813,1.6419426,3201.9,3197.1,0.005]
[1763390340814,0.1816,3200.0,3197.2,0.461]
[1763390340994,0.4585,3201.0,3197.9,0.405504]
[1763390341196,6.86809358,3200.5,3197.1,0.005]
[1763390341508,0.68680936,3200.4,3197.2,0.461]
[1763390341715,0.4585,3200.3,3197.2,0.461]
[1763390341878,0.4585,3200.3,3197.5,1.31249664]
[1763390342246,0.4585,3200.3,3197.2,0.461]
[1763390342513,1.31249664,3199.8,3197.1,0.005]
[1763390342671,0.405504,3200.2,3197.1,0.005]
[1763390342672,6.86809358,3199.4,3197.1,0.005]
[1763390342877,0.83262204,3200.1,3197.9,6.86809358]
[1763390343107,0.002,3200.2,3198.0,1.31249664]
[1763390343307,0.002,3200.2,3198.8,0.405504]
[1763390343614,0.005,3199.9,3199.5,0.405504]
[1763390343971,0.005,3199.9,3199.6,1.31249664]
[1763390344172,0.002,3200.2,3199.8,1.31249664]
[1763390344516,0.0062,3200.9,3200.2,0.405504]
[1763390344671,0.0062,3200.9,3200.8,6.86809358]
[1763390344880,0.0062,3200.9,3199.9,1.52983756]
[1763390344881,0.4585,3201.8,3199.9,1.06883756]
[1763390345185,0.4585,3201.8,3200.1,0.405504]
[1763390345385,7.05189358,3204.0,3200.4,0.90699264]
[1763390345591,0.4585,3201.7,3197.8,0.1836]
[1763390345790,0.90699264,3201.5,3197.5,6.86809358]
[1763390346000,0.90699264,3200.9,3197.6,0.68680936]
[1763390346190,0.90699264,3200.3,3196.6,6.86809358]
[1763390346374,0.90699264,3200.3,3198.1,0.005]
[1763390346607,0.4585,3200.2,3198.1,0.005]
[1763390346782,0.4585,3200.2,3195.7,6.86809358]
[1763390346783,6.86809358,3199.7,3195.7,6.86809358]
[1763390346973,0.405504,3200.1,3195.1,6.87309358]
[1763390346974,0.405504,3199.0,3195.1,6.87309358]
[1763390347302,1.593802,3199.6,3195.1,6.87309358]
[1763390347303,0.4585,3198.7,3195.1,6.87309358]
[1763390347507,0.4585,3198.7,3195.7,6.86809358]
[1763390347889,0.90699264,3198.6,3195.1,0.005]
[1763390348218,0.1816,3196.2,3195.1,0.005]
[1763390348420,0.4585,3196.1,3195.1,0.005]
[1763390348624,0.4585,3196.1,3193.1,0.005]
[1763390349117,0.4585,3196.1,3193.2,0.03131654]
[1763390349279,0.405504,3196.0,3193.1,0.005]
[1763390349680,0.405504,3195.8,3193.1,0.005]
[1763390349881,0.405504,3195.6,3193.1,0.005]
[1763390350222,0.1816,3196.2,3193.6,3.1312594]
[1763390350393,0.1816,3196.2,3194.3,0.90699264]
[1763390350718,0.4585,3196.3,3194.6,0.90699264]
[1763390350904,0.4585,3196.2,3194.7,0.77750862]
[1763390351080,0.4585,3196.2,3194.1,0.005]
[1763390351441,0.005,3196.9,3195.3,0.90699264]
[1763390351578,0.005,3196.9,3195.3,0.7772886]
[1763390351784,0.005,3196.9,3195.3,0.74599264]
[1763390352139,0.005,3196.9,3195.8,6.86809358]
[1763390352431,0.005,3196.9,3195.9,0.68680936]
[1763390352744,0.005,3196.9,3196.2,6.86809358]
[1763390352880,0.005,3196.9,3195.1,0.405504]
[1763390353080,0.005,3196.9,3195.3,0.405504]
[1763390353393,0.005,3196.9,3195.8,0.405504]
[1763390353595,0.005,3196.9,3194.7,8.36270701]
[1763390353916,0.4585,3196.8,3194.1,3.13576948]
[1763390354116,0.405504,3196.7,3194.1,0.005]
[1763390354723,0.405504,3196.5,3194.1,0.005]
[1763390354950,0.405504,3196.5,3192.0,0.462]
[1763390355106,0.1816,3194.2,3192.0,0.001]
[1763390355643,0.4585,3194.1,3192.0,0.90799264]
[1763390355844,0.4585,3194.1,3192.0,0.001]
[1763390356318,0.4585,3194.1,3192.1,3.1386604]
[1763390356506,0.4585,3194.1,3192.2,0.31396604]
[1763390356707,0.405504,3194.0,3192.1,0.006]
[1763390357222,0.405504,3193.8,3191.8,0.001]
[1763390357444,0.405504,3193.6,3191.8,0.001]
[1763390357908,0.4859,3193.5,3191.8,0.001]
[1763390358335,0.1816,3194.2,3191.8,0.001]
[1763390358564,0.4859,3193.7,3191.8,0.001]
[1763390358741,0.4859,3193.7,3191.8,0.90799264]
[1763390358944,0.4859,3193.7,3191.9,0.4042118]
[1763390359445,0.405504,3193.6,3191.8,0.001]
[1763390359744,0.405504,3193.6,3191.7,0.001]
[1763390359902,0.405504,3193.4,3191.7,0.001]
[1763390360345,0.405504,3193.2,3191.7,0.001]
[1763390360546,0.4859,3193.3,3191.7,0.001]
[1763390360844,0.4859,3193.2,3191.7,0.001]
[1763390361733,0.005,3193.9,3191.7,0.001]
[1763390361932,0.4859,3195.1,3191.9,0.405504]
[1763390362137,0.4859,3195.1,3192.3,0.405504]
[1763390362352,0.4859,3194.8,3192.0,1.09111533]
[1763390362555,0.005,3194.9,3192.3,0.405504]
[1763390362772,0.4859,3194.8,3192.2,0.405504]
[1763390362966,0.005,3194.9,3192.6,0.405504]
[1763390363131,0.005,3194.9,3193.3,1.31249664]
[1763390363471,0.005,3194.9,3192.7,0.19595844]
[1763390363625,0.4859,3194.8,3192.9,0.405504]
[1763390363825,0.005,3194.9,3192.8,0.405504]
[1763390364026,0.005,3194.9,3193.3,1.31249664]
[1763390364249,0.005,3194.9,3193.7,9.39349344]
[1763390364452,0.005,3194.9,3193.9,0.405504]
[1763390364890,0.005,3194.9,3194.1,0.405504]
[1763390365176,0.005,3194.9,3194.3,0.90699264]
[1763390365463,0.005,3194.9,3194.1,0.405504]
[1763390365832,0.005,3194.9,3194.0,0.4974]
[1763390365833,0.005,3194.9,3194.2,0.4974]
[1763390366233,0.005,3194.9,3194.3,0.405504]
[1763390366427,0.002,3198.7,3194.2,0.4974]
[1763390366428,0.4859,3197.1,3194.5,1.31249664]